[Event "Chess Festival Groningen 2023 | A"]
[Site "Groningen, Netherlands"]
[Date "2023.12.27"]
[Round "6.6"]
[White "Stremavicius, Titas"]
[Black "Maatman, Nick"]
[Result "1/2-1/2"]
[TimeControl "90min/40moves + 30min + 30sec/move"]
[WhiteElo "2550"]
[BlackElo "2371"]

1. c4 {[%clk 01:30:58]} {[%emt 00:00:01]} c5 {[%clk 01:27:58]} {[%emt
00:03:03]} 2. Nf3 {[%clk 01:31:18]} {[%emt 00:00:09]} Nc6 {[%clk 01:28:22]}
{[%emt 00:00:06]} 3. e3 {[%clk 01:26:14]} {[%emt 00:05:35]} Nf6 {[%clk
01:14:08]} {[%emt 00:14:44]} 4. Nc3 {[%clk 01:26:16]} {[%emt 00:00:28]} e6
{[%clk 01:14:26]} {[%emt 00:00:12]} 5. d4 {[%clk 01:25:05]} {[%emt 00:01:41]}
d5 {[%clk 01:14:54]} {[%emt 00:00:02]} 6. cxd5 {[%clk 01:25:13]} {[%emt
00:00:21]} exd5 {[%clk 01:14:36]} {[%emt 00:00:48]} 7. Bb5 {[%clk 01:25:18]}
{[%emt 00:00:25]} cxd4 {[%clk 01:15:02]} {[%emt 00:00:05]} 8. exd4 {[%clk
01:22:37]} {[%emt 00:03:11]} Be7 {[%clk 01:08:36]} {[%emt 00:06:56]} 9. Ne5
{[%clk 01:18:50]} {[%emt 00:04:17]} Bd7 {[%clk 00:58:22]} {[%emt 00:10:44]} 10.
O-O {[%clk 01:18:53]} {[%emt 00:00:26]} O-O {[%clk 00:58:11]} {[%emt 00:00:41]}
11. Re1 {[%clk 01:15:04]} {[%emt 00:04:20]} a6 {[%clk 00:49:57]} {[%emt
00:08:45]} 12. Ba4 {[%clk 01:13:06]} {[%emt 00:02:27]} Rc8 {[%clk 00:43:08]}
{[%emt 00:07:20]} 13. Bg5 {[%clk 01:10:46]} {[%emt 00:02:49]} Be6 {[%clk
00:33:30]} {[%emt 00:10:08]} 14. Bxc6 {[%clk 01:07:06]} {[%emt 00:04:10]} bxc6
{[%clk 00:33:48]} {[%emt 00:00:12]} 15. Na4 {[%clk 01:07:18]} {[%emt 00:00:18]}
h6 {[%clk 00:28:45]} {[%emt 00:05:33]} 16. Bxf6 {[%clk 01:01:22]} {[%emt
00:06:25]} Bxf6 {[%clk 00:29:13]} {[%emt 00:00:02]} 17. Nc5 {[%clk 00:56:23]}
{[%emt 00:05:29]} Re8 {[%clk 00:28:19]} {[%emt 00:01:26]} 18. Rc1 {[%clk
00:47:47]} {[%emt 00:09:05]} Qb6 {[%clk 00:25:25]} {[%emt 00:03:24]} 19. Qb3
{[%clk 00:47:39]} {[%emt 00:00:40]} Qxb3 {[%clk 00:21:33]} {[%emt 00:04:20]} 20.
Nxb3 {[%clk 00:47:03]} {[%emt 00:01:05]} Bf5 {[%clk 00:19:22]} {[%emt
00:02:42]} 21. f4 {[%clk 00:45:03]} {[%emt 00:02:35]} g5 {[%clk 00:18:18]}
{[%emt 00:12:27]} 22. Rf1 {[%clk 00:34:11]} {[%emt 00:00:24]} gxf4 {[%clk
00:17:11]} {[%emt 00:01:37]} 23. Rxf4 {[%clk 00:34:31]} {[%emt 00:00:09]} Bxe5
{[%clk 00:17:36]} {[%emt 00:00:05]} 24. Rxf5 {[%clk 00:33:55]} {[%emt
00:01:06]} Bg7 {[%clk 00:17:52]} {[%emt 00:00:14]} 25. Kf1 {[%clk 00:34:16]}
{[%emt 00:00:08]} Re4 {[%clk 00:13:01]} {[%emt 00:05:22]} 26. Rxd5 {[%clk
00:32:29]} {[%emt 00:02:18]} Rf4+ {[%clk 00:13:25]} {[%emt 00:00:05]} 27. Kg1
{[%clk 00:32:53]} {[%emt 00:00:06]} Re8 {[%clk 00:13:51]} {[%emt 00:00:04]} 28.
Rdc5 {[%clk 00:32:56]} {[%emt 00:00:29]} Bxd4+ {[%clk 00:10:24]} {[%emt
00:03:55]} 29. Nxd4 {[%clk 00:33:22]} {[%emt 00:00:04]} Rxd4 {[%clk 00:10:51]}
{[%emt 00:00:03]} 30. Rxc6 {[%clk 00:31:05]} {[%emt 00:02:47]} Re2 {[%clk
00:10:42]} {[%emt 00:00:39]} 31. R6c2 {[%clk 00:31:27]} {[%emt 00:00:07]} Rd1+
{[%clk 00:10:09]} {[%emt 00:01:03]} 32. Rxd1 {[%clk 00:31:54]} {[%emt
00:00:03]} Rxc2 {[%clk 00:10:35]} {[%emt 00:00:04]} 33. Rd8+ {[%clk 00:32:09]}
{[%emt 00:00:14]} Kg7 {[%clk 00:11:01]} {[%emt 00:00:05]} 34. Rb8 {[%clk
00:32:33]} {[%emt 00:00:07]} a5 {[%clk 00:09:51]} {[%emt 00:01:40]} 35. a4
{[%clk 00:31:52]} {[%emt 00:01:11]} h5 {[%clk 00:08:23]} {[%emt 00:01:58]} 36.
h4 {[%clk 00:30:26]} {[%emt 00:01:56]} f5 {[%clk 00:05:15]} {[%emt 00:03:38]}
37. Rb5 {[%clk 00:30:02]} {[%emt 00:00:53]} Kg6 {[%clk 00:04:19]} {[%emt
00:01:26]} 38. g3 {[%clk 00:23:39]} {[%emt 00:06:53]} Kf6 {[%clk 00:03:43]}
{[%emt 00:01:06]} 39. Kf1 {[%clk 00:23:58]} {[%emt 00:00:11]} Ke6 {[%clk
00:03:08]} {[%emt 00:01:05]} 40. b3 {[%clk 00:12:57]} {[%emt 00:11:30]} Rc3
{[%clk 00:00:56]} {[%emt 00:02:43]} 41. Kf2 {[%clk 00:13:19]} {[%emt 00:00:08]}
Rd3 {[%clk 00:29:49]} {[%emt 00:01:37]} 42. Rxa5 {[%clk 00:39:06]} {[%emt
00:04:43]} Rxb3 {[%clk 00:30:06]} {[%emt 00:00:14]} 43. Rb5 {[%clk 00:39:29]}
{[%emt 00:00:06]} Ra3 {[%clk 00:28:36]} {[%emt 00:01:59]} 44. a5 {[%clk
00:39:56]} {[%emt 00:00:03]} Kf6 {[%clk 00:28:10]} {[%emt 00:00:57]} 45. Kg2
{[%clk 00:38:49]} {[%emt 00:01:37]} Ke6 {[%clk 00:27:27]} {[%emt 00:01:12]} 46.
Kf2 {[%clk 00:38:53]} {[%emt 00:00:26]} Kf6 {[%clk 00:27:54]} {[%emt 00:00:04]}
47. Rb6+ {[%clk 00:39:02]} {[%emt 00:00:21]} Ke5 {[%clk 00:26:07]} {[%emt
00:02:16]} 48. a6 {[%clk 00:39:21]} {[%emt 00:00:11]} Ke4 {[%clk 00:23:52]}
{[%emt 00:02:45]} 49. Re6+ {[%clk 00:36:22]} {[%emt 00:03:29]} Kd5 {[%clk
00:24:07]} {[%emt 00:00:15]} 50. Re7 {[%clk 00:33:49]} {[%emt 00:03:04]} Rxa6
{[%clk 00:22:07]} {[%emt 00:02:30]} 51. Kf3 {[%clk 00:34:11]} {[%emt 00:00:06]}
Ra4 {[%clk 00:22:24]} {[%emt 00:00:14]} 52. Rh7 {[%clk 00:34:32]} {[%emt
00:00:07]} Ke5 {[%clk 00:22:21]} {[%emt 00:00:35]} 53. Rxh5 {[%clk 00:34:56]}
{[%emt 00:00:06]} Ra3+ {[%clk 00:22:19]} {[%emt 00:00:32]} 54. Kg2 {[%clk
00:35:19]} {[%emt 00:00:06]} Kf6 {[%clk 00:22:18]} {[%emt 00:00:31]} 55. Rh6+
{[%clk 00:35:30]} {[%emt 00:00:18]} Kg7 {[%clk 00:15:19]} {[%emt 00:07:30]} 56.
Rd6 {[%clk 00:35:29]} {[%emt 00:00:30]} Rb3 {[%clk 00:15:26]} {[%emt 00:00:24]}
57. Kf2 {[%clk 00:28:22]} {[%emt 00:07:36]} Ra3 {[%clk 00:11:29]} {[%emt
00:04:29]} 58. Re6 {[%clk 00:28:39]} {[%emt 00:00:12]} Rb3 {[%clk 00:10:24]}
{[%emt 00:01:35]} 59. Re3 {[%clk 00:29:02]} {[%emt 00:00:07]} Rb6 {[%clk
00:10:40]} {[%emt 00:00:14]} 60. g4 {[%clk 00:27:02]} {[%emt 00:01:11]} 1/2-1/2

[Event "Chess Festival Groningen 2023 | A"]
[Site "Groningen, Netherlands"]
[Date "2023.12.27"]
[Round "6.7"]
[White "Lahaye, Rick"]
[Black "De Boer, Eelke"]
[Result "1-0"]
[TimeControl "90min/40moves + 30min + 30sec/move"]
[WhiteElo "2439"]
[BlackElo "2346"]

1. Nf3 {[%clk 01:30:56]} {[%emt 00:00:03]} Nf6 {[%clk 01:30:51]} {[%emt
00:00:09]} 2. g3 {[%clk 01:31:10]} {[%emt 00:00:16]} g6 {[%clk 01:31:03]}
{[%emt 00:00:18]} 3. b3 {[%clk 01:31:24]} {[%emt 00:00:16]} Bg7 {[%clk
01:31:16]} {[%emt 00:00:17]} 4. Bb2 {[%clk 01:31:47]} {[%emt 00:00:07]} O-O
{[%clk 01:31:20]} {[%emt 00:00:25]} 5. Bg2 {[%clk 01:32:05]} {[%emt 00:00:12]}
c5 {[%clk 01:25:37]} {[%emt 00:06:14]} 6. c4 {[%clk 01:31:35]} {[%emt
00:01:00]} d6 {[%clk 01:21:43]} {[%emt 00:04:24]} 7. d4 {[%clk 01:31:09]}
{[%emt 00:00:56]} Nc6 {[%clk 01:12:46]} {[%emt 00:09:27]} 8. Nc3 {[%clk
01:27:32]} {[%emt 00:04:07]} cxd4 {[%clk 01:10:40]} {[%emt 00:02:36]} 9. Nxd4
{[%clk 01:27:35]} {[%emt 00:00:26]} Bd7 {[%clk 01:10:55]} {[%emt 00:00:15]} 10.
O-O {[%clk 01:26:04]} {[%emt 00:02:02]} Qc8 {[%clk 01:02:57]} {[%emt 00:08:28]}
11. Re1 {[%clk 01:16:03]} {[%emt 00:10:31]} Bh3 {[%clk 01:01:10]} {[%emt
00:02:17]} 12. Bh1 {[%clk 01:15:00]} {[%emt 00:01:33]} Qd7 {[%clk 01:01:12]}
{[%emt 00:00:28]} 13. e3 {[%clk 01:09:54]} {[%emt 00:05:36]} Rac8 {[%clk
00:57:59]} {[%emt 00:03:43]} 14. Rc1 {[%clk 01:09:37]} {[%emt 00:00:47]} Rfd8
{[%clk 00:49:07]} {[%emt 00:09:22]} 15. Qd2 {[%clk 01:04:33]} {[%emt 00:05:34]}
Qe8 {[%clk 00:46:53]} {[%emt 00:02:43]} 16. Nde2 {[%clk 01:03:43]} {[%emt
00:01:21]} b6 {[%clk 00:43:26]} {[%emt 00:03:57]} 17. Nf4 {[%clk 00:59:15]}
{[%emt 00:04:58]} Bd7 {[%clk 00:43:36]} {[%emt 00:00:20]} 18. Bg2 {[%clk
00:54:21]} {[%emt 00:05:24]} Ne5 {[%clk 00:42:09]} {[%emt 00:01:57]} 19. Nfe2
{[%clk 00:48:06]} {[%emt 00:06:45]} Bh3 {[%clk 00:39:40]} {[%emt 00:02:59]} 20.
Bh1 {[%clk 00:47:52]} {[%emt 00:00:44]} h5 {[%clk 00:39:06]} {[%emt 00:01:04]}
21. Nd4 {[%clk 00:46:58]} {[%emt 00:01:28]} Bd7 {[%clk 00:37:42]} {[%emt
00:01:51]} 22. Bg2 {[%clk 00:46:09]} {[%emt 00:01:19]} h4 {[%clk 00:33:40]}
{[%emt 00:04:31]} 23. gxh4 {[%clk 00:44:26]} {[%emt 00:02:13]} Qf8 {[%clk
00:30:59]} {[%emt 00:03:14]} 24. f4 {[%clk 00:43:36]} {[%emt 00:01:19]} Nc6
{[%clk 00:31:02]} {[%emt 00:00:34]} 25. Nd5 {[%clk 00:42:38]} {[%emt 00:01:20]}
Nxd4 {[%clk 00:27:38]} {[%emt 00:04:01]} 26. Bxd4 {[%clk 00:42:18]} {[%emt
00:00:45]} Nxd5 {[%clk 00:27:28]} {[%emt 00:00:42]} 27. Bxd5 {[%clk 00:39:27]}
{[%emt 00:03:19]} e6 {[%clk 00:23:46]} {[%emt 00:08:58]} 28. Bf3 {[%clk
00:38:42]} Bc6 {[%clk 00:23:41]} 29. Bxc6 {[%clk 00:36:43]} Rxc6 {[%clk
00:24:09]} 30. h5 {[%clk 00:36:57]} e5 {[%clk 00:11:17]} {[%emt 00:13:19]} 31.
Qg2 {[%clk 00:35:42]} {[%emt 00:01:36]} d5 {[%clk 00:09:55]} {[%emt 00:01:52]}
32. Bxe5 {[%clk 00:35:14]} {[%emt 00:00:59]} Bxe5 {[%clk 00:10:05]} {[%emt
00:00:19]} 33. fxe5 {[%clk 00:35:29]} {[%emt 00:00:15]} Qh6 {[%clk 00:10:13]}
{[%emt 00:00:21]} 34. Rcd1 {[%clk 00:34:45]} {[%emt 00:01:15]} Qxh5 {[%clk
00:09:13]} {[%emt 00:01:29]} 35. cxd5 {[%clk 00:33:40]} {[%emt 00:01:35]} Rc5
{[%clk 00:07:48]} {[%emt 00:01:55]} 36. b4 {[%clk 00:24:08]} {[%emt 00:10:02]}
Rc4 {[%clk 00:07:33]} {[%emt 00:00:45]} 37. Rd4 {[%clk 00:24:30]} {[%emt
00:00:09]} Rxd4 {[%clk 00:07:50]} {[%emt 00:00:13]} 38. exd4 {[%clk 00:24:48]}
{[%emt 00:00:12]} Qh4 {[%clk 00:07:41]} {[%emt 00:00:39]} 39. Re4 {[%clk
00:20:52]} {[%emt 00:04:26]} Qh6 {[%clk 00:06:49]} {[%emt 00:01:22]} 40. d6
{[%clk 00:17:22]} {[%emt 00:04:00]} Qc1+ {[%clk 00:05:13]} {[%emt 00:02:05]} 41.
Qf1 {[%clk 00:13:19]} {[%emt 00:04:34]} Qd2 {[%clk 00:02:31]} {[%emt 00:03:12]}
42. Qe1 {[%clk 00:04:55]} {[%emt 00:08:54]} Qg5+ {[%clk 00:25:33]} {[%emt
00:07:28]} 43. Qg3 {[%clk 00:34:49]} {[%emt 00:00:36]} Qc1+ {[%clk 00:25:52]}
{[%emt 00:00:10]} 44. Re1 {[%clk 00:34:26]} {[%emt 00:00:53]} Qd2 {[%clk
00:24:29]} {[%emt 00:01:53]} 45. Qh4 {[%clk 00:32:49]} {[%emt 00:02:08]} Rd7
{[%clk 00:21:48]} {[%emt 00:03:11]} 46. a3 {[%clk 00:31:30]} {[%emt 00:01:50]}
a5 {[%clk 00:16:24]} {[%emt 00:05:53]} 47. b5 {[%clk 00:31:33]} {[%emt
00:00:27]} a4 {[%clk 00:16:28]} {[%emt 00:00:26]} 48. Qe4 {[%clk 00:28:18]}
{[%emt 00:03:45]} Kg7 {[%clk 00:14:16]} {[%emt 00:02:41]} 49. Qe3 {[%clk
00:25:29]} {[%emt 00:03:19]} Qa2 {[%clk 00:12:09]} {[%emt 00:02:37]} 50. e6
{[%clk 00:25:00]} {[%emt 00:01:00]} Qxe6 {[%clk 00:11:59]} {[%emt 00:00:39]} 51.
Qxe6 {[%clk 00:25:22]} {[%emt 00:00:09]} fxe6 {[%clk 00:12:24]} {[%emt
00:00:04]} 52. Rxe6 {[%clk 00:25:49]} {[%emt 00:00:04]} Kh6 {[%clk 00:11:14]}
{[%emt 00:01:40]} 53. Kf2 {[%clk 00:25:03]} {[%emt 00:01:16]} Kg5 {[%clk
00:11:36]} {[%emt 00:00:08]} 54. h4+ {[%clk 00:23:12]} {[%emt 00:02:21]} Kf5
{[%clk 00:09:28]} {[%emt 00:02:38]} 55. d5 {[%clk 00:23:28]} {[%emt 00:00:14]}
Kf4 {[%clk 00:08:38]} {[%emt 00:01:19]} 56. Ke2 {[%clk 00:23:37]} {[%emt
00:00:22]} Kf5 {[%clk 00:08:53]} {[%emt 00:00:15]} 57. Ke3 {[%clk 00:23:45]}
{[%emt 00:00:22]} Rd8 {[%clk 00:09:13]} {[%emt 00:00:10]} 58. Kd3 {[%clk
00:22:57]} {[%emt 00:01:18]} Rd7 {[%clk 00:09:22]} {[%emt 00:00:20]} 59. Kd4
{[%clk 00:21:36]} {[%emt 00:01:52]} Rh7 {[%clk 00:09:21]} {[%emt 00:00:31]} 60.
Re4 {[%clk 00:21:49]} {[%emt 00:00:17]} Rd7 {[%clk 00:09:38]} {[%emt 00:00:14]}
61. Re1 {[%clk 00:21:34]} {[%emt 00:00:45]} 1-0

[Event "Chess Festival Groningen 2023 | A"]
[Site "Groningen, Netherlands"]
[Date "2023.12.27"]
[Round "6.8"]
[White "Kanyamarala, Tarun"]
[Black "Krasenkow, Michal"]
[Result "1/2-1/2"]
[TimeControl "90min/40moves + 30min + 30sec/move"]
[WhiteElo "2305"]
[BlackElo "2532"]

1. d4 {[%clk 01:30:56]} {[%emt 00:00:03]} d5 {[%clk 01:30:44]} {[%emt
00:00:17]} 2. c4 {[%clk 01:31:17]} {[%emt 00:00:08]} e6 {[%clk 01:31:10]}
{[%emt 00:00:05]} 3. Nc3 {[%clk 01:31:22]} {[%emt 00:00:24]} c6 {[%clk
01:31:36]} {[%emt 00:00:05]} 4. e4 {[%clk 01:31:33]} {[%emt 00:00:19]} dxe4
{[%clk 01:32:00]} {[%emt 00:00:07]} 5. Nxe4 {[%clk 01:31:55]} {[%emt 00:00:08]}
Bb4+ {[%clk 01:32:27]} {[%emt 00:00:03]} 6. Bd2 {[%clk 01:32:04]} {[%emt
00:00:21]} Qxd4 {[%clk 01:32:52]} {[%emt 00:00:05]} 7. Bxb4 {[%clk 01:32:24]}
{[%emt 00:00:10]} Qxe4+ {[%clk 01:33:18]} {[%emt 00:00:04]} 8. Ne2 {[%clk
01:28:39]} {[%emt 00:04:14]} Na6 {[%clk 01:32:12]} {[%emt 00:01:36]} 9. Bf8
{[%clk 01:28:46]} {[%emt 00:00:23]} Ne7 {[%clk 01:26:15]} {[%emt 00:06:28]} 10.
Bxg7 {[%clk 01:28:44]} {[%emt 00:00:31]} Rg8 {[%clk 01:26:43]} {[%emt
00:00:02]} 11. Bc3 {[%clk 01:17:37]} {[%emt 00:11:38]} Nc5 {[%clk 01:10:10]}
{[%emt 00:17:03]} 12. Qd4 {[%clk 01:11:45]} {[%emt 00:06:21]} Qxd4 {[%clk
01:02:53]} {[%emt 00:07:48]} 13. Bxd4 {[%clk 01:11:25]} {[%emt 00:00:50]} Nd7
{[%clk 01:00:27]} {[%emt 00:02:56]} 14. Ng3 {[%clk 01:08:12]} {[%emt 00:03:42]}
b6 {[%clk 01:00:48]} {[%emt 00:00:10]} 15. Bd3 {[%clk 01:03:04]} {[%emt
00:05:38]} f5 {[%clk 00:59:43]} {[%emt 00:01:35]} 16. O-O-O {[%clk 00:54:59]}
{[%emt 00:08:35]} Bb7 {[%clk 00:59:18]} {[%emt 00:00:56]} 17. Rhe1 {[%clk
00:52:33]} {[%emt 00:02:56]} Kf7 {[%clk 00:59:27]} {[%emt 00:00:21]} 18. f3
{[%clk 00:48:30]} {[%emt 00:04:34]} c5 {[%clk 00:56:55]} {[%emt 00:03:02]} 19.
Bc3 {[%clk 00:46:31]} {[%emt 00:02:28]} Rad8 {[%clk 00:55:54]} {[%emt
00:01:32]} 20. Re2 {[%clk 00:37:37]} {[%emt 00:09:24]} Nf6 {[%clk 00:51:40]}
{[%emt 00:04:44]} 21. Rf2 {[%clk 00:22:25]} {[%emt 00:15:42]} Nc6 {[%clk
00:49:45]} {[%emt 00:02:27]} 22. Bb1 {[%clk 00:16:32]} {[%emt 00:19:41]} Rxd1+
{[%clk 00:34:01]} {[%emt 00:02:54]} 23. Kxd1 {[%clk 00:14:42]} {[%emt
00:02:20]} Nd4 {[%clk 00:34:14]} {[%emt 00:00:17]} 24. Ne2 {[%clk 00:14:44]}
{[%emt 00:00:27]} Rd8 {[%clk 00:23:44]} {[%emt 00:11:01]} 25. Nxd4 {[%clk
00:08:25]} {[%emt 00:06:49]} cxd4 {[%clk 00:23:59]} {[%emt 00:00:14]} 26. Rd2
{[%clk 00:08:47]} {[%emt 00:00:09]} Nh5 {[%clk 00:19:58]} {[%emt 00:04:31]} 27.
Rxd4 {[%clk 00:06:06]} {[%emt 00:03:11]} Rxd4+ {[%clk 00:20:21]} {[%emt
00:00:08]} 28. Bxd4 {[%clk 00:06:31]} {[%emt 00:00:05]} Nf4 {[%clk 00:20:46]}
{[%emt 00:00:04]} 29. g3 {[%clk 00:06:31]} {[%emt 00:00:30]} Bxf3+ {[%clk
00:21:06]} {[%emt 00:00:10]} 30. Kd2 {[%clk 00:06:36]} {[%emt 00:00:25]} Nh5
{[%clk 00:18:41]} {[%emt 00:02:55]} 31. a4 {[%clk 00:04:02]} {[%emt 00:03:04]}
Nf6 {[%clk 00:18:25]} {[%emt 00:00:46]} 32. c5 {[%clk 00:03:01]} {[%emt
00:01:32]} bxc5 {[%clk 00:15:42]} {[%emt 00:03:14]} 33. Bxc5 {[%clk 00:03:29]}
a6 {[%clk 00:16:05]} {[%emt 00:00:07]} 34. Bd4 {[%clk 00:02:57]} {[%emt
00:01:01]} Bb7 {[%clk 00:12:54]} {[%emt 00:03:43]} 35. Bd3 {[%clk 00:02:55]}
{[%emt 00:00:31]} Ng4 {[%clk 00:11:09]} {[%emt 00:02:15]} 36. h3 {[%clk
00:03:05]} {[%emt 00:00:20]} Nf6 {[%clk 00:11:25]} {[%emt 00:00:14]} 37. Ke3
{[%clk 00:02:30]} {[%emt 00:01:04]} Nd5+ {[%clk 00:11:09]} {[%emt 00:00:47]} 38.
Kf2 {[%clk 00:01:59]} {[%emt 00:01:01]} Nf6 {[%clk 00:08:52]} {[%emt 00:02:48]}
39. Be5 {[%clk 00:01:35]} {[%emt 00:00:53]} Nd7 {[%clk 00:05:47]} {[%emt
00:03:35]} 40. Bd6 {[%clk 00:00:53]} {[%emt 00:01:12]} Kf6 {[%clk 00:06:11]}
{[%emt 00:00:06]} 41. b4 {[%clk 00:21:44]} {[%emt 00:09:38]} e5 {[%clk
00:35:53]} {[%emt 00:00:49]} 42. b5 {[%clk 00:20:37]} {[%emt 00:01:37]} axb5
{[%clk 00:36:15]} {[%emt 00:00:08]} 43. Bxb5 {[%clk 00:20:51]} {[%emt
00:00:16]} Ke6 {[%clk 00:36:30]} {[%emt 00:00:15]} 44. Bxd7+ {[%clk 00:14:46]}
{[%emt 00:06:35]} Kxd7 {[%clk 00:36:44]} {[%emt 00:00:16]} 45. Bxe5 {[%clk
00:15:10]} {[%emt 00:00:05]} h5 {[%clk 00:35:35]} {[%emt 00:01:39]} 46. Ke3
{[%clk 00:14:45]} {[%emt 00:00:56]} Bg2 {[%clk 00:35:56]} {[%emt 00:00:09]} 47.
h4 {[%clk 00:15:13]} {[%emt 00:00:02]} Kc6 {[%clk 00:36:12]} {[%emt 00:00:13]}
48. Kd4 {[%clk 00:15:16]} {[%emt 00:00:27]} Kb6 {[%clk 00:36:31]} {[%emt
00:00:11]} 49. Kc4 {[%clk 00:15:25]} {[%emt 00:00:21]} Bf3 {[%clk 00:36:50]}
{[%emt 00:00:10]} 50. Kb4 {[%clk 00:15:49]} {[%emt 00:00:07]} Ka6 {[%clk
00:37:13]} {[%emt 00:00:07]} 51. Bf4 {[%clk 00:16:14]} {[%emt 00:00:04]} Bg4
{[%clk 00:37:38]} {[%emt 00:00:06]} 52. Be5 {[%clk 00:16:42]} {[%emt 00:00:02]}
1/2-1/2

[Event "Chess Festival Groningen 2023 | A"]
[Site "Groningen, Netherlands"]
[Date "2023.12.27"]
[Round "6.9"]
[White "Kollen, Zyon"]
[Black "Kovchan, Alexander"]
[Result "1/2-1/2"]
[TimeControl "90min/40moves + 30min + 30sec/move"]
[WhiteElo "2318"]
[BlackElo "2491"]

1. e4 {[%clk 01:30:56]} {[%emt 00:00:03]} c5 {[%clk 01:30:49]} {[%emt
00:00:11]} 2. Nf3 {[%clk 01:31:17]} {[%emt 00:00:09]} d6 {[%clk 01:31:10]}
{[%emt 00:00:08]} 3. d4 {[%clk 01:31:41]} {[%emt 00:00:07]} cxd4 {[%clk
01:31:32]} {[%emt 00:00:07]} 4. Nxd4 {[%clk 01:32:07]} {[%emt 00:00:05]} Nf6
{[%clk 01:31:52]} {[%emt 00:00:09]} 5. Nc3 {[%clk 01:32:29]} {[%emt 00:00:08]}
a6 {[%clk 01:32:15]} {[%emt 00:00:08]} 6. Be3 {[%clk 01:32:54]} {[%emt
00:00:05]} e5 {[%clk 01:32:24]} {[%emt 00:00:21]} 7. Nb3 {[%clk 01:33:14]}
{[%emt 00:00:09]} Be6 {[%clk 01:32:41]} {[%emt 00:00:13]} 8. f3 {[%clk
01:33:34]} {[%emt 00:00:11]} h5 {[%clk 01:33:01]} {[%emt 00:00:10]} 9. Qd2
{[%clk 01:33:44]} {[%emt 00:00:20]} Nbd7 {[%clk 01:33:17]} {[%emt 00:00:13]} 10.
a4 {[%clk 01:33:41]} {[%emt 00:00:34]} Be7 {[%clk 01:33:03]} {[%emt 00:00:44]}
11. Be2 {[%clk 01:33:46]} {[%emt 00:00:25]} O-O {[%clk 01:32:49]} {[%emt
00:00:44]} 12. O-O {[%clk 01:33:49]} {[%emt 00:00:27]} h4 {[%clk 01:32:35]}
{[%emt 00:00:43]} 13. Nd5 {[%clk 01:28:47]} {[%emt 00:05:33]} Bxd5 {[%clk
01:29:35]} {[%emt 00:03:30]} 14. exd5 {[%clk 01:27:32]} {[%emt 00:01:45]} Nh5
{[%clk 01:27:16]} {[%emt 00:02:49]} 15. Rfd1 {[%clk 01:21:21]} {[%emt
00:06:42]} f5 {[%clk 01:21:16]} {[%emt 00:06:30]} 16. c4 {[%clk 01:18:35]}
{[%emt 00:03:17]} f4 {[%clk 01:09:49]} {[%emt 00:11:57]} 17. Bf2 {[%clk
01:18:34]} {[%emt 00:00:30]} h3 {[%clk 01:10:11]} {[%emt 00:00:08]} 18. g4
{[%clk 00:47:02]} {[%emt 00:32:02]} fxg3 {[%clk 01:08:48]} {[%emt 00:01:53]} 19.
hxg3 {[%clk 00:47:25]} {[%emt 00:00:07]} Bg5 {[%clk 01:06:03]} {[%emt
00:03:15]} 20. Qc2 {[%clk 00:40:21]} {[%emt 00:07:34]} Qf6 {[%clk 00:50:28]}
{[%emt 00:16:05]} 21. Nd2 {[%clk 00:35:14]} {[%emt 00:05:40]} Qh6 {[%clk
00:46:44]} {[%emt 00:04:17]} 22. Nf1 {[%clk 00:19:08]} {[%emt 00:16:34]} Rae8
{[%clk 00:43:31]} {[%emt 00:03:48]} 23. Ra3 {[%clk 00:16:55]} {[%emt 00:09:00]}
a5 {[%clk 00:37:11]} {[%emt 00:00:24]} 24. Bd3 {[%clk 00:14:55]} {[%emt
00:02:31]} b6 {[%clk 00:19:13]} {[%emt 00:18:28]} 25. Bf5 {[%clk 00:12:07]}
{[%emt 00:03:18]} Nc5 {[%clk 00:18:25]} {[%emt 00:01:18]} 26. Bxc5 {[%clk
00:08:34]} {[%emt 00:04:04]} bxc5 {[%clk 00:18:48]} {[%emt 00:00:07]} 27. Be6+
{[%clk 00:08:23]} {[%emt 00:00:40]} Kh8 {[%clk 00:19:03]} {[%emt 00:00:15]} 28.
Rb3 {[%clk 00:07:38]} {[%emt 00:01:15]} Rb8 {[%clk 00:15:03]} {[%emt 00:04:29]}
29. Rxb8 {[%clk 00:04:38]} {[%emt 00:03:31]} Rxb8 {[%clk 00:15:31]} {[%emt
00:00:02]} 30. Rd3 {[%clk 00:04:58]} {[%emt 00:00:10]} Rb4 {[%clk 00:13:13]}
{[%emt 00:02:48]} 31. Rb3 {[%clk 00:04:26]} {[%emt 00:01:02]} h2+ {[%clk
00:10:47]} {[%emt 00:02:56]} 32. Kh1 {[%clk 00:03:29]} {[%emt 00:01:26]} Bd8
{[%clk 00:04:12]} {[%emt 00:07:06]} 33. Rxb4 {[%clk 00:03:27]} {[%emt
00:00:33]} cxb4 {[%clk 00:04:27]} {[%emt 00:00:15]} 34. Qxh2 {[%clk 00:02:25]}
{[%emt 00:01:31]} Bb6 {[%clk 00:04:36]} {[%emt 00:00:21]} 35. g4 {[%clk
00:02:10]} {[%emt 00:00:45]} Nf4 {[%clk 00:04:54]} {[%emt 00:00:12]} 36. Qxh6+
{[%clk 00:01:37]} {[%emt 00:01:04]} gxh6 {[%clk 00:05:23]} {[%emt 00:00:02]} 37.
b3 {[%clk 00:01:11]} {[%emt 00:00:56]} Ne2 {[%clk 00:04:54]} {[%emt 00:00:58]}
38. Bf5 {[%clk 00:01:18]} {[%emt 00:00:23]} Kg7 {[%clk 00:02:29]} {[%emt
00:02:54]} 39. Bc2 {[%clk 00:00:52]} {[%emt 00:00:57]} Kf6 {[%clk 00:01:48]}
{[%emt 00:01:11]} 40. Nd2 {[%clk 00:00:44]} {[%emt 00:00:39]} Nc3 {[%clk
00:01:32]} {[%emt 00:00:45]} 41. Ne4+ {[%clk 00:15:14]} {[%emt 00:16:00]} Nxe4
{[%clk 00:31:43]} {[%emt 00:00:19]} 42. Bxe4 {[%clk 00:15:39]} {[%emt
00:00:05]} Kg5 {[%clk 00:31:45]} {[%emt 00:00:28]} 43. Kg2 {[%clk 00:16:03]}
{[%emt 00:00:05]} Kf4 {[%clk 00:32:00]} {[%emt 00:00:16]} 44. Kf1 {[%clk
00:16:24]} {[%emt 00:00:09]} Ke3 {[%clk 00:32:15]} {[%emt 00:00:15]} 45. Ke1
{[%clk 00:16:44]} {[%emt 00:00:10]} Kd4 {[%clk 00:28:54]} {[%emt 00:03:51]} 46.
Kd2 {[%clk 00:16:38]} {[%emt 00:00:36]} Bd8 {[%clk 00:29:02]} {[%emt 00:00:23]}
47. Kc2 {[%clk 00:16:49]} {[%emt 00:00:19]} Bg5 {[%clk 00:28:54]} {[%emt
00:00:38]} 48. Bf5 {[%clk 00:16:33]} {[%emt 00:00:45]} Bd8 {[%clk 00:27:31]}
{[%emt 00:01:53]} 1/2-1/2